bitfinex/quotes_ETHUSD_20251019
["timestamp","ask_amount","ask_price","bid_price","bid_amount"]
[1760879480707,33.57311768,3924.2,3924.1,0.002]
[1760879481119,33.86541025,3924.2,3924.1,0.002]
[1760879481341,3.18214987,3923.8,3923.7,0.002]
[1760879481566,8.0293878,3923.8,3923.7,0.002]
[1760879481843,32.42773337,3923.8,3923.7,0.002]
[1760879482142,33.10163337,3923.8,3923.7,0.002]
[1760879482712,39.0248878,3923.8,3923.7,0.002]
[1760879482912,23.9661727,3923.4,3923.3,0.002]
[1760879483117,22.58220163,3923.4,3923.3,0.002]
[1760879483318,22.90380163,3923.4,3923.3,0.002]
[1760879483719,30.72141763,3923.4,3923.3,0.002]
[1760879484719,34.94087263,3923.4,3923.3,0.002]
[1760879485022,31.84861963,3923.4,3923.3,0.002]
[1760879485627,8.35124763,3923.4,3923.3,0.002]
[1760879485828,34.87480663,3923.4,3923.3,0.002]
[1760879486037,12.12087663,3923.4,3923.3,0.002]
[1760879486227,7.64147263,3923.4,3923.3,0.002]
[1760879486434,7.39604763,3923.4,3923.3,0.4612]
[1760879486631,8.02964763,3923.4,3923.3,0.4612]
[1760879486834,7.39604763,3923.4,3923.3,0.4612]
[1760879487448,8.02964763,3923.4,3923.3,0.4612]
[1760879491355,8.79610245,3923.4,3923.3,0.002]
[1760879491522,8.79610245,3923.4,3923.3,0.4612]
[1760879492958,8.79610245,3923.4,3923.3,0.002]
[1760879493158,9.11770245,3923.4,3923.3,0.002]
[1760879495654,9.11685729,3923.4,3923.3,0.002]
[1760879498059,32.08688729,3923.4,3923.3,0.002]
[1760879498242,31.64102329,3923.4,3923.3,0.002]
[1760879498557,29.04479329,3923.4,3923.3,0.002]
[1760879499142,32.29462529,3923.4,3923.3,0.002]
[1760879499765,29.33821329,3923.4,3923.3,0.002]
[1760879500257,15.63798029,3923.4,3923.3,0.002]
[1760879501358,25.70929929,3923.4,3923.3,0.002]
[1760879501561,20.87947729,3923.4,3923.3,0.002]
[1760879501856,19.71403329,3923.4,3923.3,0.002]
[1760879502240,21.01400029,3923.4,3923.3,0.002]
[1760879503233,21.82047629,3923.4,3923.3,0.002]
[1760879504259,17.44662129,3923.4,3923.3,0.002]
[1760879504452,16.09243729,3923.4,3923.3,0.002]
[1760879504641,15.63663729,3923.4,3923.3,0.002]
[1760879505272,21.59929729,3923.4,3923.3,0.002]
[1760879506369,28.06256329,3923.4,3923.3,0.002]
[1760879507076,26.43195729,3923.4,3923.3,0.002]
[1760879507276,23.68223029,3923.4,3923.3,0.002]
[1760879508370,23.78213429,3923.4,3923.3,0.002]
[1760879509378,11.53069258,3923.0,3922.9,0.002]
[1760879509591,14.64908535,3923.0,3922.9,0.002]
[1760879510160,15.08868535,3923.0,3922.9,0.002]
[1760879510348,8.46866235,3923.0,3922.9,0.002]
[1760879510549,13.10089435,3923.0,3922.9,0.002]
[1760879510750,11.85278835,3923.0,3922.9,0.002]
[1760879511367,8.46866235,3923.0,3922.9,0.002]
[1760879511680,13.52938835,3923.0,3922.9,0.002]
[1760879512381,13.85098835,3923.0,3922.9,0.002]
[1760879512576,8.79026235,3923.0,3922.9,0.002]
[1760879512922,16.90106135,3923.0,3922.9,0.002]
[1760879513382,14.79402935,3923.0,3922.9,0.002]
[1760879513582,14.16272635,3923.0,3922.9,0.002]
[1760879513786,13.58862035,3923.0,3922.9,0.002]
[1760879513956,12.09560635,3923.0,3922.9,0.002]
[1760879514575,8.46866235,3923.0,3922.9,0.002]
[1760879514881,13.47437635,3923.0,3922.9,0.002]
[1760879515583,12.81456035,3923.0,3922.9,0.002]
[1760879515888,13.10456035,3923.0,3922.9,0.002]
[1760879516786,14.85266635,3923.0,3922.9,0.002]
[1760879517286,12.51169635,3923.0,3922.9,0.4416]
[1760879517588,11.76094235,3923.0,3922.9,0.4416]
[1760879517781,8.46866235,3923.0,3922.9,0.002]
[1760879517987,16.01314735,3923.0,3922.9,0.002]
[1760879518857,14.74258735,3923.0,3922.9,0.002]
[1760879519057,12.98878435,3923.0,3922.9,0.002]
[1760879519281,12.40837335,3923.0,3922.9,0.002]
[1760879520015,13.66279235,3923.0,3922.9,0.002]
[1760879520889,18.54350135,3923.0,3922.9,0.002]
[1760879522002,18.67253535,3923.0,3922.9,0.002]
[1760879522217,21.27253535,3923.0,3922.9,0.002]
[1760879522514,21.07657735,3923.0,3922.9,0.002]
[1760879522716,18.30662535,3923.0,3922.9,0.002]
[1760879522927,16.79392335,3923.0,3922.9,0.002]
[1760879523210,8.79026235,3923.0,3922.9,0.002]
[1760879523423,24.49811035,3923.0,3922.9,0.002]
[1760879524206,3.18325452,3922.1,3922.0,0.6543]
[1760879524406,8.02964729,3922.1,3922.0,0.2147]
[1760879524612,8.02964729,3922.1,3922.0,0.6543]
[1760879525196,8.02964729,3922.1,3922.0,0.2147]
[1760879525403,4.91138454,3921.9,3921.8,0.6827]
[1760879525583,5.46077731,3921.9,3921.8,0.2173]
[1760879526116,5.46077731,3921.9,3921.8,0.6827]
[1760879526716,5.46077731,3921.9,3921.4,0.2187]
[1760879526717,0.6336,3921.7,3921.4,0.2187]
[1760879527030,4.27804462,3921.5,3921.4,0.2187]
[1760879527236,7.39643739,3921.5,3921.4,0.2187]
[1760879527602,7.39643739,3921.5,3921.4,0.6841]
[1760879530232,8.03003739,3921.5,3921.4,0.654]
[1760879530628,8.03003739,3921.5,3921.4,0.2207]
[1760879531546,8.03003739,3921.5,3921.4,0.002]
[1760879533848,8.03003739,3921.5,3921.4,0.4353]
[1760879534756,4.84639277,3921.5,3921.4,0.4353]
[1760879535134,2.27739277,3921.5,3921.4,0.4353]
[1760879536054,2.27739277,3921.5,3921.4,0.73385981]
[1760879536261,0.76670751,3922.4,3921.4,0.73385981]
[1760879536423,5.66843401,3922.3,3921.5,0.4333]
[1760879536762,3.0994634,3922.2,3922.0,0.2218]
[1760879536922,0.54986416,3922.1,3922.0,0.2218]
[1760879537122,3.09951868,3922.1,3922.0,0.2218]
[1760879537661,3.09951868,3922.1,3922.0,0.6551]
[1760879538946,4.27778454,3921.9,3921.8,0.2218]
[1760879539566,1.728,3921.9,3921.8,0.2218]
[1760879539737,1.728,3921.9,3921.8,0.6551]
[1760879540256,2.27795503,3921.9,3921.8,0.6551]
[1760879540557,2.27797862,3921.9,3921.8,0.6551]
[1760879540754,2.27797862,3921.9,3921.8,0.2218]
[1760879540925,2.27797862,3921.9,3921.8,0.6551]
[1760879540926,4.82776316,3921.9,3921.8,0.6551]
[1760879542450,1.728,3921.8,3921.1,2.55025291]
[1760879542654,1.728,3921.8,3921.2,0.27638529]
[1760879542856,1.728,3921.9,3921.2,2.82662383]
[1760879543456,1.728,3921.9,3921.3,2.55012129]
[1760879544066,1.728,3921.9,3921.2,2.82661144]
[1760879544449,1.728,3921.9,3921.3,0.2195]
[1760879544642,1.728,3921.9,3921.4,0.30461114]
[1760879544848,1.728,3922.2,3921.5,0.2195]
[1760879545172,1.728,3922.0,3921.2,0.27638529]
[1760879545494,3.0997379,3922.1,3921.0,0.4331]
[1760879545495,1.728,3921.8,3921.3,0.2195]
[1760879545858,1.728,3921.8,3921.1,0.2195]
[1760879546045,2.5499314,3921.7,3921.1,0.2195]
[1760879546785,2.54998177,3921.6,3921.1,0.2195]
[1760879546952,2.54998177,3921.6,3921.0,0.2136]
[1760879547293,1.728,3921.8,3921.0,0.2136]
[1760879547446,4.27790776,3921.8,3921.1,0.2195]
[1760879548363,2.54992961,3921.7,3921.1,0.2215]
[1760879548690,2.54992961,3921.7,3921.1,0.002]
[1760879548987,4.27785019,3921.8,3921.1,0.002]
[1760879550193,2.54991457,3921.7,3921.1,0.002]
[1760879550611,1.728,3921.8,3921.1,0.40486044]
[1760879550905,4.27784986,3921.8,3921.1,0.40486044]
[1760879551601,4.71134986,3921.8,3921.1,0.40486044]
[1760879552397,0.1272,3921.6,3921.1,0.40486044]
[1760879553875,0.1272,3921.6,3921.2,2.55017589]
[1760879554082,0.1272,3921.6,3921.3,0.35153363]
[1760879555172,0.55030069,3921.8,3921.4,0.2195]
[1760879555370,4.4252,3921.9,3921.2,0.1272]
[1760879555569,0.55028767,3921.8,3921.3,0.2195]
[1760879555903,0.1282,3921.9,3921.4,0.2195]
[1760879556268,0.1282,3921.9,3921.2,0.1272]
[1760879556886,0.1282,3921.9,3921.3,2.55015449]
[1760879557217,0.67848767,3921.9,3921.3,3.15692097]
[1760879557525,0.67848767,3921.9,3921.3,0.60676648]
[1760879558698,0.67848767,3921.9,3921.4,2.55009954]
[1760879558917,0.4301,3921.8,3921.2,0.1272]
[1760879559223,2.1581,3921.8,3921.2,0.1272]
[1760879562395,0.5507642,3921.7,3921.3,2.55015597]
[1760879562724,0.5507642,3921.7,3921.3,0.58481497]
[1760879562922,0.5507642,3921.8,3921.3,0.58481497]
[1760879563094,0.9808642,3921.8,3921.3,0.58481497]
[1760879563626,0.5507642,3921.7,3921.3,0.58481497]
[1760879564191,0.5507642,3921.8,3921.3,0.58481497]
[1760879564412,1.8562,3921.9,3921.1,0.40686044]
[1760879564413,0.1272,3921.6,3921.1,0.002]
[1760879564793,0.1272,3921.6,3921.2,2.55017949]
[1760879565022,0.55122635,3921.8,3921.3,0.3467]
[1760879565223,0.55122635,3921.7,3921.4,2.55004526]
[1760879565425,0.1282,3921.9,3921.3,0.1272]
[1760879565628,0.55137329,3921.8,3921.4,2.76960965]
[1760879565832,0.1282,3921.9,3921.6,2.5499178]
[1760879566125,0.001,3921.9,3921.6,2.7694178]
[1760879566429,0.001,3921.9,3921.6,0.2195]
[1760879566818,0.001,3921.9,3921.5,2.6772372]
[1760879566993,0.001,3921.9,3921.6,0.2195]
[1760879567190,0.001,3921.9,3921.6,0.76418962]
[1760879567398,0.001,3921.9,3921.5,2.67723424]
[1760879567829,0.001,3921.9,3921.5,0.1272]
[1760879568619,0.4311,3921.9,3921.5,0.1272]
[1760879568995,0.4301,3921.8,3921.5,0.1272]
[1760879569191,0.55116655,3921.7,3921.5,0.1272]
[1760879569438,0.98126655,3921.7,3921.5,0.1272]
[1760879569619,0.4301,3921.7,3921.3,2.569]
[1760879569928,0.001,3921.9,3921.3,2.569]
[1760879569929,0.55116555,3921.8,3921.3,2.6962]
[1760879570151,0.55116555,3921.7,3921.3,2.6962]
[1760879570430,0.55116555,3921.8,3921.3,5.24636935]
[1760879570598,0.55116555,3921.7,3921.3,5.46586935]
[1760879570799,0.55116555,3921.8,3921.3,5.46586935]
[1760879571012,0.1282,3921.9,3921.3,5.46586935]
[1760879571211,0.55115379,3921.8,3921.3,5.46586935]
[1760879571428,0.55114392,3921.8,3921.3,5.46586935]
[1760879572009,0.55114392,3921.8,3921.3,5.24636935]
[1760879572210,0.1282,3921.9,3921.3,5.24636935]
[1760879572413,0.55113846,3921.8,3921.3,2.6962]
[1760879572623,0.1282,3921.9,3921.3,2.6962]
[1760879572913,0.55112665,3921.8,3921.3,2.6962]
[1760879573112,0.4301,3921.7,3921.3,2.6962]
[1760879573914,0.1282,3921.9,3921.3,2.6962]
[1760879573915,2.67799595,3921.9,3921.3,2.6962]
[1760879574115,0.4301,3921.6,3921.3,2.6962]
[1760879575238,0.4301,3921.6,3921.3,0.1272]
[1760879575746,0.4301,3921.5,3921.3,0.1272]
[1760879576243,0.4301,3921.4,3921.1,0.002]
[1760879576743,0.4301,3921.3,3921.1,0.002]
[1760879576955,0.5573,3921.3,3921.1,0.002]
[1760879577116,0.4301,3921.2,3921.1,0.002]
[1760879578920,4.70833972,3921.2,3921.1,0.002]
[1760879579134,5.25947208,3921.2,3921.1,0.002]
[1760879587246,7.39837208,3921.2,3921.1,0.002]
[1760879587446,7.83287208,3921.2,3921.1,0.002]
[1760879591675,7.85597208,3921.2,3921.1,0.002]
[1760879597486,8.07547208,3921.2,3921.1,0.002]
[1760879599589,7.85597208,3921.2,3921.1,0.002]
[1760879602401,7.39837208,3921.2,3921.1,0.002]
[1760879602572,7.85597208,3921.2,3921.1,0.002]
[1760879605305,2.28013236,3921.2,3921.1,0.2215]
[1760879605622,0.001,3921.2,3921.1,0.2215]
[1760879605774,0.001,3921.2,3921.1,3.31675912]
[1760879606179,0.001,3921.2,3921.1,0.76645436]
[1760879606475,0.001,3921.2,3921.1,0.2215]
[1760879607006,0.001,3921.2,3921.1,2.77180476]
[1760879607576,0.001,3921.2,3921.1,0.2215]
[1760879608314,0.001,3921.2,3921.1,2.89900476]
[1760879609856,0.001,3921.2,3921.1,2.9245078]
[1760879610022,0.001,3921.2,3921.1,3.48471815]
[1760879610840,0.001,3921.2,3921.1,6.05371815]
[1760879611135,0.001,3921.2,3921.1,6.02821511]
[1760879612937,0.001,3921.2,3921.1,3.47791035]
[1760879613139,0.001,3921.2,3921.1,0.90891035]
[1760879613320,0.001,3921.2,3921.1,5.46800476]
[1760879616016,0.001,3921.2,3921.1,5.24850476]
[1760879616546,0.001,3921.2,3921.1,2.67950476]
[1760879616846,0.001,3921.2,3921.1,5.24850476]
[1760879617242,0.001,3921.2,3921.1,5.46800476]
[1760879619853,0.001,3921.2,3921.1,2.72803876]
[1760879620029,0.001,3921.2,3921.1,5.8189088]
[1760879620745,0.001,3921.2,3921.1,5.92112392]
[1760879621348,0.001,3921.2,3921.1,5.70162392]
[1760879622945,0.001,3921.2,3921.1,5.5994088]
[1760879624566,0.001,3921.2,3921.1,5.8189088]
[1760879625270,0.001,3921.2,3921.1,5.8209088]
[1760879625965,0.001,3921.2,3921.1,5.6014088]
[1760879626142,0.001,3921.2,3921.1,5.8209088]
[1760879628032,0.001,3921.2,3921.1,5.6014088]
[1760879628251,0.001,3921.2,3921.1,5.8209088]
[1760879629040,0.001,3921.2,3921.1,5.6014088]
[1760879629452,0.001,3921.2,3921.1,5.8209088]
[1760879629965,0.001,3921.2,3921.1,5.6014088]
[1760879630355,0.001,3921.2,3921.1,5.8209088]
[1760879632275,0.001,3921.2,3921.1,5.92310826]
[1760879633342,0.001,3921.2,3921.1,5.70360826]
[1760879634578,0.001,3921.2,3921.1,3.3222695]
[1760879634884,0.001,3921.2,3921.1,5.8902695]
[1760879636609,0.4498,3921.2,3921.1,5.8902695]
[1760879637193,0.001,3921.2,3921.1,5.8902695]
[1760879641201,0.001,3921.2,3921.1,6.1097695]
[1760879642206,0.001,3921.2,3921.1,5.8902695]
[1760879642395,0.001,3921.2,3921.1,6.1097695]
[1760879643012,0.001,3921.2,3921.1,5.8902695]
[1760879644078,0.001,3921.2,3921.1,6.1097695]
[1760879644278,0.001,3921.2,3921.1,5.8902695]
[1760879644480,0.001,3921.2,3921.1,6.1097695]
[1760879645617,0.001,3921.2,3921.1,9.9797695]
[1760879645814,0.001,3921.2,3921.1,6.7433695]
[1760879646919,0.001,3921.2,3921.1,10.6133695]
[1760879647143,0.001,3921.9,3921.8,3.18344955]
[1760879647312,0.001,3921.9,3921.8,6.32478843]
[1760879647638,0.001,3921.9,3921.8,6.67148843]
[1760879647941,0.001,3921.9,3921.8,7.10738843]
[1760879649027,0.001,3921.9,3921.8,3.68628843]
[1760879649230,0.001,3921.9,3921.8,6.25428843]
[1760879649429,0.001,3921.9,3921.8,6.47378843]
[1760879650143,0.001,3921.9,3921.8,7.10738843]
[1760879652056,0.001,3921.9,3921.8,10.97738843]
[1760879653425,0.2342,3923.2,3923.0,2.54906958]
[1760879653615,0.001,3923.8,3923.1,3.20402296]
[1760879653616,0.4704,3923.6,3923.1,3.20402296]
[1760879653814,0.001,3923.8,3923.6,2.54867978]
[1760879654010,0.001,3923.8,3923.6,5.11567978]
[1760879654429,0.4714,3923.7,3923.6,5.11567978]
[1760879655634,0.001,3923.7,3923.6,5.11567978]
[1760879655859,0.001,3923.7,3923.6,5.8948472]
[1760879656170,0.001,3923.7,3923.6,6.3662472]
[1760879657350,0.001,3923.7,3923.6,2.567]
[1760879657351,0.4714,3923.7,3923.6,2.567]
[1760879657930,0.4714,3923.7,3923.5,2.6942]
[1760879658120,0.4704,3923.6,3923.5,0.1272]
[1760879658449,0.4704,3923.6,3923.5,2.6942]
[1760879658650,0.4704,3923.6,3921.8,0.57333888]
[1760879658950,2.54875536,3923.5,3923.1,0.1272]
[1760879659139,0.4704,3923.4,3923.1,0.1272]
[1760879667344,0.4704,3923.4,3922.1,6.437]
[1760879667554,0.4704,3923.3,3922.1,2.567]
[1760879667863,0.2272,3922.2,3922.1,2.567]
[1760879668065,0.6976,3922.2,3922.1,2.567]
[1760879668438,0.6976,3922.2,3921.8,2.569]
[1760879668764,0.4704,3922.1,3921.8,3.2129]
[1760879669067,0.2272,3922.2,3921.8,2.569]
[1760879669068,0.4704,3922.0,3921.8,2.569]
[1760879669272,0.4704,3921.9,3921.8,0.002]
[1760879671786,0.2272,3922.2,3921.8,0.002]
[1760879671787,0.6976,3922.2,3921.8,0.002]
[1760879672156,0.4704,3922.1,3921.8,2.55184012]
[1760879672487,0.2272,3922.2,3921.9,2.54978454]
[1760879672686,0.6976,3922.7,3921.8,3.06201988]
[1760879672874,0.6976,3922.7,3921.9,2.5497293]
[1760879673203,0.4704,3922.6,3922.0,2.54970169]
[1760879673497,0.4704,3922.6,3921.9,2.54978367]
[1760879673976,1.9552,3922.7,3921.9,2.54978367]
[1760879674181,0.4704,3922.6,3921.9,2.54978367]
[1760879674370,0.4704,3922.5,3921.9,2.54978367]
[1760879676057,0.4704,3922.5,3921.8,0.51218804]
[1760879676392,0.4704,3922.5,3921.9,2.54972788]
[1760879677492,0.8009,3922.7,3922.0,2.67690984]
[1760879677793,0.4465,3922.6,3922.0,0.1272]
[1760879680016,2.54957714,3922.3,3921.8,0.002]
[1760879680162,2.54952307,3922.4,3921.8,0.002]
[1760879680484,0.4465,3922.2,3921.8,0.002]
[1760879681361,2.567,3922.3,3921.8,0.002]
[1760879681362,0.4465,3922.1,3921.8,0.002]
[1760879681983,2.99616297,3922.1,3921.8,0.002]
[1760879682291,0.4465,3922.0,3921.8,0.002]
[1760879682497,2.567,3922.3,3921.8,0.002]
[1760879682861,2.54929985,3924.2,3921.8,0.002]
[1760879682862,1.728,3922.6,3921.8,0.002]
[1760879683161,0.4465,3922.2,3921.8,0.002]
[1760879683587,0.4465,3922.1,3921.8,0.002]
[1760879683994,0.4465,3922.0,3921.8,0.002]
[1760879684397,0.4465,3921.9,3921.8,0.002]
[1760879684820,0.2272,3922.7,3921.8,0.002]
[1760879685024,1.728,3922.5,3921.8,0.002]
[1760879685226,1.728,3922.5,3921.8,2.55180387]
[1760879685533,1.728,3922.5,3921.9,2.54977248]
[1760879686201,1.728,3922.5,3921.8,0.002]
[1760879686724,2.568,3922.6,3922.1,2.54964536]
[1760879686927,1.728,3923.0,3921.9,0.2195]
[1760879687129,0.4475,3923.6,3922.0,0.2195]
[1760879687327,2.2835,3923.4,3922.0,0.2195]
[1760879687514,0.001,3923.4,3922.8,2.54915306]
[1760879688608,0.4465,3923.3,3922.4,2.7885]
[1760879688799,0.4465,3923.3,3922.8,2.54914576]
[1760879688999,0.001,3923.4,3922.7,2.54925681]
[1760879689200,0.4465,3923.2,3922.7,2.54925681]
[1760879689401,1.729,3923.4,3922.7,2.54925681]
[1760879689617,0.4465,3923.3,3922.7,2.54925681]
[1760879689932,0.4465,3923.3,3922.8,0.1272]
[1760879690335,0.001,3923.4,3922.8,0.1272]
[1760879690519,0.001,3923.4,3923.0,2.54906628]
[1760879690721,0.001,3923.4,3922.9,2.54912076]
[1760879691103,0.001,3923.4,3922.9,3.02412792]
[1760879691819,0.001,3923.4,3922.9,0.47500716]
[1760879692020,0.4475,3923.4,3922.9,0.47500716]
[1760879692751,0.4465,3923.3,3922.9,0.47500716]
[1760879693528,0.001,3923.4,3923.1,2.54899281]
[1760879693825,0.001,3923.4,3923.2,0.1272]
[1760879695047,0.001,3923.4,3923.2,2.67613901]
[1760879695245,0.001,3923.4,3923.3,2.54887467]
[1760879697026,0.001,3923.4,3923.3,2.76837467]
[1760879697222,0.001,3923.4,3923.3,3.96760879]
[1760879698419,0.001,3923.4,3923.3,3.74810879]
[1760879700570,0.001,3923.4,3923.3,3.96760879]
[1760879701323,0.001,3923.4,3923.3,7.83760879]
[1760879701648,0.001,3923.4,3923.3,8.47120879]
[1760879702032,0.001,3923.4,3923.3,7.83760879]
[1760879703763,0.001,3923.4,3923.3,7.61810879]
[1760879703924,0.001,3923.4,3923.3,10.18710879]
[1760879704321,0.001,3923.4,3923.3,10.40660879]
[1760879705060,0.001,3923.4,3923.3,11.04020879]
[1760879705661,0.001,3923.4,3923.3,8.89820879]
[1760879705823,0.001,3923.8,3923.7,2.54861482]
[1760879706026,1e-08,3924.1,3924.0,4.91001997]
[1760879706381,0.001,3925.1,3924.4,3.18176022]
[1760879706532,0.001,3925.1,3924.4,5.75176022]
[1760879706728,0.001,3925.1,3924.4,5.97126022]
[1760879709370,0.669,3924.9,3924.4,5.11816022]
[1760879709580,0.669,3924.9,3924.4,6.13963703]
[1760879710079,0.2166,3924.9,3924.4,6.13963703]
[1760879712380,0.4423,3924.5,3924.4,6.13963703]
[1760879712942,0.4423,3924.5,3924.4,5.11816022]
[1760879713770,0.4423,3924.5,3924.4,5.24536022]
[1760879713940,0.001,3924.5,3924.4,5.24536022]
[1760879717874,0.001,3924.5,3924.4,5.46486022]
[1760879718391,0.001,3924.5,3924.4,7.69926022]
[1760879718574,0.001,3924.5,3924.4,8.73422237]
[1760879719247,0.001,3924.5,3924.4,8.51472237]
[1760879720177,0.001,3924.5,3924.4,8.61681775]
[1760879720891,0.4423,3924.5,3924.4,3.58312237]
[1760879721041,0.4423,3924.5,3924.4,5.12016022]
[1760879722273,0.4423,3924.5,3924.4,2.572]
[1760879722675,0.4423,3924.5,3924.4,5.12016022]
[1760879726301,0.4423,3924.5,3924.4,2.572]
[1760879726585,0.4423,3924.5,3923.1,0.2195]
[1760879726586,0.4423,3924.5,3924.1,2.572]
[1760879726761,0.001,3924.5,3924.1,2.572]
[1760879726949,0.4413,3924.4,3924.1,2.572]
[1760879727291,0.4413,3924.3,3924.1,2.572]
[1760879727579,0.001,3924.5,3924.4,2.54816022]
[1760879728271,0.001,3924.5,3924.4,3.31500139]
[1760879728443,0.001,3924.5,3924.4,3.44220139]
[1760879728649,0.001,3924.5,3924.4,6.01420139]
[1760879728881,0.001,3924.5,3924.4,5.24736022]
[1760879729881,0.4423,3924.5,3924.4,5.24736022]
[1760879730580,0.001,3924.5,3924.4,5.24736022]
[1760879731880,0.4423,3924.5,3924.4,5.24736022]
[1760879734080,0.4423,3924.5,3924.4,5.24936022]
[1760879734670,0.001,3924.5,3924.4,6.02912139]
[1760879735092,0.4454,3924.5,3924.4,6.02912139]
[1760879735293,0.4454,3924.5,3924.4,2.7012]
[1760879735493,0.4454,3924.5,3924.4,0.1292]
[1760879736356,0.4454,3924.5,3924.4,2.67736022]
[1760879736588,0.001,3924.5,3924.4,2.67736022]
[1760879737386,0.001,3924.5,3924.4,5.24836022]
[1760879737589,0.001,3924.5,3924.4,6.02802446]
[1760879743078,0.4454,3924.5,3924.4,5.24836022]
[1760879744486,0.4454,3924.5,3924.4,2.7002]
[1760879745577,0.4454,3924.5,3924.4,5.24836022]
[1760879745778,0.001,3924.5,3924.4,5.24836022]
[1760879746089,0.4454,3924.5,3924.4,5.24836022]
[1760879747111,0.001,3924.5,3924.4,7.93193682]
[1760879747515,0.001,3924.5,3924.4,12.02143682]
[1760879747819,0.001,3924.5,3924.4,8.15143682]
[1760879748118,0.001,3924.5,3924.4,6.42343682]
[1760879749190,0.001,3924.5,3924.4,6.20393682]
[1760879753522,0.001,3924.5,3924.4,10.29343682]
[1760879754691,0.001,3924.5,3924.4,10.92703682]
[1760879756630,0.001,3924.5,3924.4,11.0291361]
[1760879756838,0.001,3924.5,3924.4,10.8096361]
[1760879757001,0.001,3924.5,3924.4,10.07293682]
[1760879757330,0.001,3924.5,3924.4,10.29243682]
[1760879758402,0.001,3924.5,3924.4,10.07293682]
[1760879760496,0.4454,3924.5,3924.4,10.07293682]
[1760879760698,0.4454,3924.5,3924.4,6.5692]
[1760879760924,0.4454,3924.5,3924.4,0.1292]
[1760879761199,0.4454,3924.5,3924.4,0.002]
[1760879761650,0.4454,3924.5,3924.1,0.1272]
[1760879761801,0.4454,3924.5,3924.0,0.002]
[1760879761802,1.728,3924.3,3924.0,0.002]
[1760879762139,2.54835503,3924.1,3924.0,0.002]
[1760879762297,0.4444,3924.2,3924.0,0.002]
[1760879762498,0.001,3924.5,3924.0,0.002]
[1760879762499,0.001,3924.5,3924.1,2.67555503]
[1760879762698,0.001,3924.5,3924.0,0.002]
[1760879762699,0.4444,3924.4,3924.0,0.002]
[1760879762935,0.001,3924.5,3924.4,0.1272]
[1760879763634,0.4454,3924.5,3924.4,0.1272]
[1760879764633,0.001,3924.5,3924.4,2.67536022]
[1760879764837,0.4454,3924.5,3924.4,2.67536022]
[1760879765035,0.001,3924.5,3924.4,2.67536022]
[1760879765445,0.4541,3924.5,3924.4,2.67536022]
[1760879765746,0.4541,3924.5,3924.4,0.1272]
[1760879766200,0.4541,3924.5,3924.4,2.67536022]
[1760879767824,0.4541,3924.5,3924.4,0.1272]
[1760879768407,0.4541,3924.5,3924.4,2.67536022]
[1760879768633,0.001,3924.5,3924.4,2.67736022]
[1760879773533,0.4523,3924.5,3924.4,0.1292]
[1760879775942,3.00039529,3924.5,3924.4,0.1292]
[1760879776155,4.72839529,3924.5,3924.4,0.002]
[1760879776658,2.1803,3924.5,3924.4,0.002]
[1760879777003,4.72839529,3924.5,3924.4,0.002]
[1760879777208,2.1803,3924.5,3924.4,0.002]
[1760879777410,2.65957178,3924.5,3924.4,0.002]
[1760879777609,2.1803,3924.5,3924.4,0.002]
[1760879778932,4.72839529,3924.5,3924.4,0.002]
[1760879779127,2.1803,3924.5,3924.4,0.002]
[1760879781330,4.72839529,3924.5,3924.4,0.002]
[1760879782064,1.729,3924.5,3924.4,0.002]
[1760879782769,2.1803,3924.5,3924.4,0.002]
[1760879785333,4.72839529,3924.5,3924.4,0.002]
[1760879786368,2.1803,3924.5,3924.4,0.002]
[1760879786570,4.72839529,3924.5,3924.4,0.002]
[1760879787470,2.1803,3924.5,3924.4,0.002]
[1760879788271,1.00184245,3924.5,3924.4,0.002]
[1760879788643,0.4523,3924.5,3924.4,0.002]
[1760879791662,0.001,3924.5,3924.4,0.002]
[1760879791871,0.001,3924.5,3924.4,2.89886022]
[1760879792045,0.001,3924.5,3924.4,3.70057314]
[1760879792380,0.001,3924.6,3924.5,4.90969529]
[1760879792547,0.001,3924.7,3924.6,4.90963037]
[1760879792748,0.001,3924.7,3924.6,5.12913037]
[1760879794575,0.001,3924.7,3924.6,7.70013037]
[1760879794781,0.001,3924.7,3924.6,8.84019423]
[1760879795697,0.001,3924.7,3924.6,6.25909423]
[1760879796081,0.001,3924.7,3924.6,6.47859423]
[1760879796478,0.001,3924.7,3924.6,6.25909423]
[1760879797503,0.4679,3924.7,3924.6,5.11903037]
[1760879797681,0.001,3924.7,3924.6,2.571]
[1760879797886,0.4679,3924.7,3924.6,2.571]
[1760879798497,0.4679,3924.7,3924.5,0.1272]
[1760879799009,0.001,3924.7,3924.5,0.1272]
[1760879799199,0.4679,3924.7,3924.5,0.1272]
[1760879799504,0.001,3924.7,3924.5,0.1272]
[1760879799677,0.4669,3924.6,3924.5,0.1272]
[1760879801008,0.001,3924.7,3924.6,2.54803037]
[1760879801504,0.001,3924.7,3924.5,0.1272]
[1760879801906,0.001,3924.7,3924.6,2.54803037]
[1760879802812,0.001,3924.7,3924.5,2.67525834]
[1760879803190,0.4679,3924.7,3924.5,2.67525834]
[1760879803519,0.4679,3924.7,3924.6,2.54803037]
[1760879803680,0.4679,3924.7,3924.5,0.1272]
[1760879803681,0.001,3924.7,3924.5,0.1272]
[1760879803880,0.4669,3924.6,3924.5,0.1272]
[1760879808477,0.4669,3924.6,3924.4,0.002]
[1760879808893,0.001,3924.7,3924.5,2.54809529]
[1760879809321,0.001,3924.7,3924.6,5.11803037]